bitfinex-derivatives/quotes_BTCF0:USTF0_20251109
["timestamp","ask_amount","ask_price","bid_price","bid_amount"]
[1762647819283,0.86473116,101870.0,101860.0,0.12386]
[1762647819778,0.86673116,101870.0,101860.0,0.12386]
[1762647819983,0.69628469,101870.0,101860.0,0.1627]
[1762647820177,0.82895116,101870.0,101860.0,0.1627]
[1762647820376,1.22953116,101870.0,101860.0,0.06279]
[1762647820771,0.206281,101850.0,101840.0,0.3608]
[1762647820985,0.69591747,101850.0,101840.0,0.48466]
[1762647821170,0.84236336,101850.0,101840.0,0.48466]
[1762647821878,0.84246668,101850.0,101840.0,0.48466]
[1762647822079,0.84246668,101850.0,101840.0,0.12586]
[1762647823176,0.97513315,101850.0,101840.0,0.12586]
[1762647823587,0.84246668,101850.0,101840.0,0.12586]
[1762647824185,0.84246668,101850.0,101840.0,0.16338]
[1762647826980,0.84246668,101850.0,101840.0,0.002]
[1762647826981,2.23687115,101850.0,101840.0,0.002]
[1762647827181,0.1887306,101840.0,101830.0,0.00014702]
[1762647827390,0.68228554,101840.0,101830.0,0.00014702]
[1762647827593,0.82943824,101840.0,101830.0,0.00014702]
[1762647828675,0.83243824,101840.0,101830.0,0.00014702]
[1762647829790,0.83543824,101840.0,101830.0,0.00014702]
[1762647829984,0.47463824,101840.0,101830.0,0.47792702]
[1762647830184,0.47463824,101840.0,101830.0,0.51544702]
[1762647830490,0.81543824,101840.0,101830.0,0.51544702]
[1762647831589,0.22925494,101840.0,101830.0,0.51544702]
[1762647831891,0.00608847,101840.0,101830.0,0.61368722]
[1762647832295,0.00608847,101840.0,101830.0,0.51544702]
[1762647832794,0.10431897,101840.0,101830.0,0.51544702]
[1762647832995,0.23698544,101840.0,101830.0,0.51544702]
[1762647834089,0.28223544,101840.0,101830.0,0.51544702]
[1762647836897,0.28223544,101840.0,101830.0,1.11544702]
[1762647837293,0.45915832,101860.0,101850.0,0.15188]
[1762647837294,0.43915832,101860.0,101850.0,0.15188]
[1762647837488,0.57182479,101860.0,101850.0,0.15188]
[1762647837688,0.71871196,101860.0,101850.0,0.15188]
[1762647838296,0.71876984,101860.0,101850.0,0.15188]
[1762647839500,0.72476984,101860.0,101850.0,0.15288]
[1762647839693,0.72776984,101860.0,101850.0,0.15288]
[1762647841099,1.22123631,101860.0,101850.0,0.09302]
[1762647841295,2.12211643,101860.0,101850.0,0.001]
[1762647841700,0.95584549,101860.0,101850.0,0.001]
[1762647841904,1.55584549,101860.0,101850.0,0.001]
[1762647842200,0.23089707,101840.0,101830.0,2e-08]
[1762647842405,1.29329707,101840.0,101830.0,2e-08]
[1762647842703,1.43979832,101840.0,101830.0,2e-08]
[1762647843600,1.44579832,101840.0,101830.0,2e-08]
[1762647844302,1.4459036,101840.0,101830.0,2e-08]
[1762647844502,1.4459036,101840.0,101830.0,0.03626002]
[1762647844705,1.31313185,101840.0,101830.0,0.15188002]
[1762647844893,0.97238973,101840.0,101830.0,0.28465177]
[1762647845094,0.59158973,101840.0,101830.0,0.15188002]
[1762647845294,0.95238973,101840.0,101830.0,0.03626002]
[1762647845597,0.95233185,101840.0,101830.0,2e-08]
[1762647847506,0.95238973,101840.0,101830.0,2e-08]
[1762647847898,0.95233185,101840.0,101830.0,2e-08]
[1762647848399,0.95233185,101840.0,101830.0,0.03626002]
[1762647849896,0.95233185,101840.0,101830.0,0.15188002]
[1762647850395,0.95238973,101840.0,101830.0,0.15188002]
[1762647855198,0.59158973,101840.0,101830.0,0.15188002]
[1762647857309,0.59158973,101840.0,101830.0,0.39149158]
[1762647857702,0.59158973,101840.0,101830.0,0.51268002]
[1762647858501,0.00605788,101840.0,101830.0,0.75229158]
[1762647859406,0.00605788,101840.0,101830.0,0.85053188]
[1762647860706,0.00605788,101840.0,101830.0,0.75229158]
[1762647860898,0.00605788,101840.0,101830.0,0.51268002]
[1762647861099,0.00605788,101840.0,101830.0,0.85053188]
[1762647864110,0.43916052,101860.0,101850.0,0.15188]
[1762647864298,0.43916052,101860.0,101850.0,0.51268]
[1762647864500,0.58682052,101860.0,101850.0,0.51268]
[1762647865103,0.59282052,101860.0,101850.0,0.51368]
[1762647865310,0.59582052,101860.0,101850.0,0.51368]
[1762647865608,0.80134052,101860.0,101850.0,0.51368]
[1762647866107,0.80134052,101860.0,101850.0,0.15288]
[1762647866911,0.80134052,101860.0,101850.0,0.51368]
[1762647867312,0.80133842,101860.0,101850.0,0.51368]
[1762647869314,0.46053842,101860.0,101850.0,0.51368]
[1762647869502,0.46053842,101860.0,101850.0,0.64636731]
[1762647871216,0.46053842,101860.0,101850.0,0.28556731]
[1762647872310,0.46053842,101860.0,101850.0,0.2855645]
[1762647873115,0.46053842,101860.0,101850.0,0.29183988]
[1762647873712,0.45453842,101860.0,101850.0,0.29083988]
[1762647873915,0.45153842,101860.0,101850.0,0.29083988]
[1762647874414,0.45453842,101860.0,101850.0,0.29083988]
[1762647876714,0.45153842,101860.0,101850.0,0.29083988]
[1762647876916,0.45353842,101860.0,101850.0,0.29083988]
[1762647877315,0.45153842,101860.0,101850.0,0.29083988]
[1762647877508,0.45553842,101860.0,101850.0,0.29083988]
[1762647877907,0.45553842,101860.0,101850.0,0.65163988]
[1762647879216,0.45553842,101860.0,101850.0,0.51268]
[1762647879420,0.45553842,101860.0,101850.0,0.65163988]
[1762647883422,0.45153842,101860.0,101850.0,0.65163988]
[1762647883625,0.45353842,101860.0,101850.0,0.65163988]
[1762647884024,0.45153842,101860.0,101850.0,0.65163988]
[1762647884213,0.45553842,101860.0,101850.0,0.65163988]
[1762647894933,0.45553842,101860.0,101850.0,0.29083988]
[1762647895141,0.45553842,101860.0,101850.0,0.65163988]
[1762647898435,0.45553882,101860.0,101850.0,0.65163988]
[1762647900940,0.35732702,101860.0,101850.0,0.65163988]
[1762647901139,0.25709702,101860.0,101850.0,0.65163988]
[1762647901443,0.35530892,101860.0,101850.0,0.65163988]
[1762647901636,0.15180702,101860.0,101850.0,0.88882126]
[1762647901836,0.14922,101880.0,101870.0,0.3411522]
[1762647902143,0.85858,101890.0,101880.0,0.24295]
[1762647902330,0.85858,101890.0,101880.0,0.52086976]
[1762647902526,1.00517669,101890.0,101880.0,0.38190988]
[1762647902834,0.30381669,101890.0,101880.0,0.38190988]
[1762647903235,0.40199969,101890.0,101880.0,0.38190988]
[1762647903441,0.40699969,101890.0,101880.0,0.38190988]
[1762647903636,0.30881669,101890.0,101880.0,0.38190988]
[1762647904343,0.30881669,101890.0,101880.0,0.74270988]
[1762647904842,0.40699959,101890.0,101880.0,0.74270988]
[1762647905539,0.30881669,101890.0,101880.0,0.74270988]
[1762647906335,0.23020669,101890.0,101880.0,0.74270988]
[1762647906935,0.15159669,101890.0,101880.0,0.74270988]
[1762647908951,0.15159669,101890.0,101880.0,0.74260583]
[1762647914756,0.15159669,101890.0,101880.0,0.84079843]
[1762647915853,0.15159669,101890.0,101880.0,0.74260583]
[1762647916056,0.40699969,101890.0,101880.0,0.74260583]
[1762647917749,0.30881669,101890.0,101880.0,0.74260583]
[1762647917953,0.30881669,101890.0,101880.0,0.84079843]
[1762647918157,0.23020669,101890.0,101880.0,0.74260583]
[1762647918348,0.005,101890.0,101880.0,0.97965426]
[1762647919457,0.005,101890.0,101880.0,1.12795426]
[1762647920658,0.005,101890.0,101880.0,0.89090583]
[1762647920958,0.25554282,101900.0,101890.0,0.24295]
[1762647921156,0.25554282,101900.0,101890.0,0.38180583]
[1762647921557,0.25554282,101900.0,101890.0,0.74260583]
[1762647922664,0.25554282,101900.0,101890.0,0.60375]
[1762647922964,0.15736702,101900.0,101890.0,0.74260583]
[1762647924861,0.25554032,101900.0,101890.0,0.74260583]
[1762647927062,0.15736702,101900.0,101890.0,0.74260583]
[1762647928252,0.39439615,101900.0,101890.0,0.60375]
[1762647928452,0.90158561,101900.0,101890.0,0.24295]
[1762647932366,0.90161175,101900.0,101890.0,0.24295]
[1762647933066,0.89534275,101900.0,101890.0,0.24295]
[1762647935156,0.1990126,101880.0,101870.0,0.59019702]
[1762647935466,0.68688411,101880.0,101870.0,0.22939702]
[1762647936970,0.68688411,101880.0,101870.0,0.23139702]
[1762647937271,0.68688411,101880.0,101870.0,0.22939702]
[1762647937470,0.68888411,101880.0,101870.0,0.22939702]
[1762647937872,0.68688411,101880.0,101870.0,0.22939702]
[1762647938061,0.68888411,101880.0,101870.0,0.22939702]
[1762647938263,1.18229708,101880.0,101870.0,0.22939702]
[1762647939373,1.18229708,101880.0,101870.0,0.00014702]
[1762647939569,1.18229708,101880.0,101870.0,0.22423702]
[1762647939772,0.68888411,101880.0,101870.0,0.22423702]
[1762647940272,0.68988411,101880.0,101870.0,0.71764999]
[1762647940772,0.68688411,101880.0,101870.0,0.71764999]
[1762647940974,0.59069151,101880.0,101870.0,0.71764999]
[1762647941372,0.68888411,101880.0,101870.0,0.71764999]
[1762647941871,0.59069151,101880.0,101870.0,0.71764999]
[1762647942070,0.68888411,101880.0,101870.0,0.71764999]
[1762647946180,0.68888411,101880.0,101870.0,0.58503702]
[1762647946378,0.59069151,101880.0,101870.0,0.58503702]
[1762647947170,0.14959151,101880.0,101870.0,0.81585219]
[1762647947369,0.002,101880.0,101870.0,0.81585219]
[1762647948480,0.51034032,101900.0,101890.0,0.21046]
[1762647949486,0.51034032,101900.0,101890.0,0.57126]
[1762647949781,0.41416702,101900.0,101890.0,0.57126]
[1762647949974,0.07388702,101900.0,101890.0,0.70387297]
[1762647950176,0.07388702,101900.0,101890.0,0.57126]
[1762647950376,0.17206032,101900.0,101890.0,0.70387297]
[1762647951287,0.07388702,101900.0,101890.0,0.70387297]
[1762647951876,0.07388702,101900.0,101890.0,0.86687297]
[1762647952590,0.17006032,101900.0,101890.0,0.86687297]
[1762647953488,0.07188702,101900.0,101890.0,0.86687297]
[1762647954389,0.17006032,101900.0,101890.0,0.86687297]
[1762647954594,0.17006032,101900.0,101890.0,0.73426]
[1762647956496,0.17006032,101900.0,101890.0,0.86687297]
[1762647956796,0.15198032,101900.0,101890.0,0.86687297]
[1762647957995,0.05380702,101900.0,101890.0,0.86687297]
[1762647958891,0.00014702,101900.0,101890.0,0.86687297]
[1762647959091,0.00014702,101900.0,101890.0,0.96505597]
[1762647959496,0.00014702,101900.0,101890.0,0.86687297]
[1762647959896,0.09832032,101900.0,101890.0,0.86687297]
[1762647960088,0.12515032,101900.0,101890.0,0.86687297]
[1762647960608,0.15198032,101900.0,101890.0,0.86687297]
[1762647962900,0.05380702,101900.0,101890.0,0.86687297]
[1762647963098,0.43192915,101900.0,101890.0,0.37346]
[1762647963294,1.13288915,101900.0,101890.0,0.37346]
[1762647964598,1.15971915,101900.0,101890.0,0.163]
[1762647965202,1.13288915,101900.0,101890.0,0.36533]
[1762647966597,1.13288915,101900.0,101890.0,0.163]
[1762647967803,0.1518526,101880.0,101870.0,0.20336702]
[1762647968007,0.62458557,101880.0,101870.0,0.20336702]
[1762647968199,0.77191274,101880.0,101870.0,0.20336702]
[1762647968398,1.13271274,101880.0,101870.0,0.20336702]
[1762647969202,1.13271274,101880.0,101870.0,0.20636702]
[1762647969407,1.13271274,101880.0,101870.0,0.00314702]
[1762647970806,1.13371274,101880.0,101870.0,0.07724702]
[1762647971106,1.13371274,101880.0,101870.0,0.15458702]
[1762647971407,1.13671274,101880.0,101870.0,0.15458702]
[1762647972505,1.13671274,101880.0,101870.0,0.07724702]
[1762647972905,1.13671274,101880.0,101870.0,0.00014702]
[1762647973593,0.1518719,101860.0,101850.0,0.20233]
[1762647973798,0.4919919,101860.0,101850.0,0.20233]
[1762647973999,0.63842443,101860.0,101850.0,0.20233]
[1762647975008,0.63942443,101860.0,101850.0,0.20233]
[1762647976298,1.00022443,101860.0,101850.0,0.20233]
[1762647977412,0.0982022,101870.0,101860.0,0.04789]
[1762647977611,0.4383622,101870.0,101860.0,0.48579]
[1762647977805,0.58600627,101870.0,101860.0,0.56313]
[1762647978710,0.58800627,101870.0,101860.0,0.56313]
[1762647980608,0.80244671,101870.0,101860.0,0.3608]
[1762647980811,0.0982119,101860.0,101850.0,0.40869]
[1762647981112,0.24456142,101860.0,101850.0,0.56313]
[1762647982213,0.24656142,101860.0,101850.0,0.56313]
[1762647988617,0.37917439,101860.0,101850.0,0.3608]
[1762647988815,0.0982215,101850.0,101840.0,0.67248702]
[1762647989011,0.4383815,101850.0,101840.0,0.67248702]
[1762647989319,0.58550024,101850.0,101840.0,0.67248702]
[1762647990421,0.58650024,101850.0,101840.0,0.67248702]
[1762647990718,0.58650024,101850.0,101840.0,0.80509999]
[1762647991013,0.48827874,101850.0,101840.0,0.80509999]
[1762647991227,0.58650024,101850.0,101840.0,0.80509999]
[1762647994319,0.58650024,101850.0,101840.0,0.80519732]
[1762647995317,0.58650024,101850.0,101840.0,0.67248702]
[1762647995620,0.7255077,101850.0,101840.0,0.67248702]
[1762647997517,0.7255077,101850.0,101840.0,0.53938702]
[1762647997822,0.7255077,101850.0,101840.0,0.00014702]
[1762647999320,0.7255077,101850.0,101840.0,0.13069702]
[1762648000224,0.72554534,101850.0,101840.0,0.20551702]
[1762648000725,0.72554534,101850.0,101840.0,0.33861702]
[1762648001822,0.58650024,101850.0,101840.0,0.33861702]
[1762648002022,0.72554534,101850.0,101840.0,0.69941702]
[1762648002212,0.72554534,101850.0,101840.0,0.33861702]
[1762648007919,1.22539044,101850.0,101840.0,0.00014702]
[1762648013529,0.94730024,101850.0,101840.0,0.18766702]
[1762648013826,1.08634534,101850.0,101840.0,0.18766702]
[1762648014027,0.72554534,101850.0,101840.0,0.18766702]
[1762648014432,0.58650024,101850.0,101840.0,0.30541702]
[1762648014626,0.72554534,101850.0,101840.0,0.30541702]
[1762648014931,0.58650024,101850.0,101840.0,0.30541702]
[1762648015237,0.72554534,101850.0,101840.0,0.66621702]
[1762648015632,0.72554534,101850.0,101840.0,0.80526212]
[1762648015931,0.72554534,101850.0,101840.0,0.66621702]
[1762648018632,0.58650024,101850.0,101840.0,0.66621702]
[1762648018830,0.72554534,101850.0,101840.0,0.66621702]
[1762648020128,0.72554534,101850.0,101840.0,0.80526212]
[1762648020129,0.48823874,101850.0,101840.0,0.80526212]
[1762648020328,0.58646024,101850.0,101840.0,0.80526212]
[1762648023830,0.48823874,101850.0,101840.0,0.80526212]
[1762648024128,0.58646024,101850.0,101840.0,0.80526212]
[1762648026334,0.58646024,101850.0,101840.0,0.66621702]
[1762648026524,0.58646024,101850.0,101840.0,0.80526212]
[1762648028333,0.58646024,101850.0,101840.0,0.66621702]
[1762648028534,0.72550534,101850.0,101840.0,0.66621702]
[1762648029032,0.72550534,101850.0,101840.0,0.80526212]
[1762648029728,0.72550534,101850.0,101840.0,0.66621702]
[1762648032734,0.72550534,101850.0,101840.0,0.80526212]
[1762648033344,0.72550534,101850.0,101840.0,0.66621702]
[1762648033736,0.62728384,101850.0,101840.0,0.66621702]
[1762648034034,0.62728384,101850.0,101840.0,0.80526212]
[1762648034035,0.48823874,101850.0,101840.0,0.80526212]
[1762648034238,0.48823874,101850.0,101840.0,0.66621702]
[1762648034430,0.48823874,101850.0,101840.0,0.80526212]
[1762648034734,0.72550534,101850.0,101840.0,0.66621702]
[1762648035935,0.72550534,101850.0,101840.0,0.80526212]
[1762648037235,0.72547367,101850.0,101840.0,0.80523045]
[1762648038133,0.58646024,101850.0,101840.0,0.80523045]
[1762648041436,0.72547367,101850.0,101840.0,0.66621702]
[1762648041826,0.72547367,101850.0,101840.0,0.30541702]
[1762648047337,0.8644871,101850.0,101840.0,0.30541702]
[1762648047535,0.0982312,101840.0,101830.0,0.25443]
[1762648047735,0.59804463,101840.0,101830.0,0.25443]
[1762648048034,0.74614498,101840.0,101830.0,0.25443]
[1762648049941,0.74614498,101840.0,101830.0,0.25543]
[1762648051136,0.60713155,101840.0,101830.0,0.25543]
[1762648051341,0.74614498,101840.0,101830.0,0.25543]
[1762648051741,0.24633155,101840.0,101830.0,0.25543]
[1762648051945,0.38534498,101840.0,101830.0,0.25543]
[1762648052147,0.14810035,101840.0,101830.0,0.39444343]
[1762648052347,0.48806035,101840.0,101830.0,0.39444343]
[1762648052547,0.58629145,101840.0,101830.0,0.39444343]
[1762648052847,0.58629145,101840.0,101830.0,0.75524343]
[1762648053145,0.58629145,101840.0,101830.0,0.61623]
[1762648053443,0.48806035,101840.0,101830.0,0.61623]
[1762648053745,0.48806035,101840.0,101830.0,0.86348422]
[1762648053746,3.5e-07,101840.0,101830.0,0.86348422]
[1762648054047,3.5e-07,101840.0,101830.0,0.76524342]
[1762648054253,0.33996,101850.0,101840.0,0.27008]
[1762648054446,0.33996,101850.0,101840.0,0.76989343]
[1762648054638,0.48653063,101850.0,101840.0,0.76989343]
[1762648054839,0.48653063,101850.0,101840.0,0.63088]
[1762648055034,0.48653063,101850.0,101840.0,0.76989343]
[1762648056051,0.48753063,101850.0,101840.0,0.76989343]
[1762648056439,0.48753063,101850.0,101840.0,0.76986562]
[1762648057346,0.48753063,101850.0,101840.0,0.76359412]
[1762648057549,0.64252213,101850.0,101840.0,0.76359412]
[1762648058053,1.00332213,101850.0,101840.0,0.27008]
[1762648058245,1.13603625,101850.0,101840.0,0.27008]
[1762648059750,1.13603625,101850.0,101840.0,0.20654]
[1762648060146,0.2117711,101840.0,101830.0,0.25443]
[1762648060351,0.34448522,101840.0,101830.0,0.25443]
[1762648060545,0.49264976,101840.0,101830.0,0.25443]
[1762648061947,0.49264976,101840.0,101830.0,0.25543]
[1762648062353,0.85344976,101840.0,101830.0,0.25543]
[1762648073259,0.85344976,101840.0,101830.0,0.20754]
[1762648073761,0.85344976,101840.0,101830.0,0.001]
[1762648073974,0.1815409,101830.0,101820.0,0.00014702]
[1762648074158,1.01497502,101830.0,101820.0,0.00014702]
[1762648074357,1.16304279,101830.0,101820.0,0.09979702]
[1762648074864,1.16304279,101830.0,101820.0,0.20404702]
[1762648075066,1.16304279,101830.0,101820.0,0.20604702]
[1762648075768,1.16304279,101830.0,101820.0,0.26114702]
[1762648075971,1.24307464,101830.0,101820.0,0.26114702]
[1762648079079,0.88227464,101830.0,101820.0,0.26114702]
[1762648080176,1.24307464,101830.0,101820.0,0.26114702]
[1762648081974,0.88227464,101830.0,101820.0,0.26114702]
[1762648083679,1.24307464,101830.0,101820.0,0.26114702]
[1762648086178,0.88227464,101830.0,101820.0,0.26114702]
[1762648086377,0.67219962,101830.0,101820.0,0.26114702]
[1762648086679,0.52963777,101830.0,101820.0,0.62194702]
[1762648087877,0.56004777,101830.0,101820.0,0.62194702]
[1762648088580,0.69276189,101830.0,101820.0,0.62194702]
[1762648088780,0.79100299,101830.0,101820.0,0.62194702]
[1762648089278,0.69276189,101830.0,101820.0,0.62194702]
[1762648089471,0.56004777,101830.0,101820.0,0.62194702]
[1762648091275,0.65828877,101830.0,101820.0,0.62194702]
[1762648092079,0.56004777,101830.0,101820.0,0.62194702]
[1762648093186,0.52963777,101830.0,101820.0,0.62194702]
[1762648093378,0.48798777,101830.0,101820.0,0.62194702]
[1762648093581,0.64704887,101830.0,101820.0,0.62194702]
[1762648093884,0.77976299,101830.0,101820.0,0.62194702]
[1762648094374,0.54880777,101830.0,101820.0,0.62194702]
[1762648094768,0.51839777,101830.0,101820.0,0.62194702]
[1762648095086,0.48798777,101830.0,101820.0,0.75466114]
[1762648095287,0.48798777,101830.0,101820.0,0.62194702]
[1762648104091,0.58622877,101830.0,101820.0,0.62194702]
[1762648104590,0.48798777,101830.0,101820.0,0.62194702]
[1762648106295,0.51839777,101830.0,101820.0,0.62194702]
[1762648107495,0.51839777,101830.0,101820.0,0.26114702]
[1762648107693,0.51839777,101830.0,101820.0,0.62194702]
[1762648108095,0.61663887,101830.0,101820.0,0.62194702]
[1762648108596,0.61831887,101830.0,101820.0,0.62194702]
[1762648110595,0.52007777,101830.0,101820.0,0.62194702]
[1762648110893,0.61831887,101830.0,101820.0,0.62194702]
[1762648112095,0.52007777,101830.0,101820.0,0.62194702]
[1762648115799,0.52007777,101830.0,101820.0,0.26114702]
[1762648115998,0.52007777,101830.0,101820.0,0.62194702]
[1762648117203,0.65914221,101830.0,101820.0,0.76101146]
[1762648120603,0.48798777,101830.0,101820.0,0.76101146]
[1762648120802,0.01143777,101830.0,101820.0,1.2438466]
[1762648121103,0.60783842,101840.0,101830.0,0.22214]
[1762648121303,0.60783842,101840.0,101830.0,0.36120444]
[1762648121507,0.65663618,101840.0,101830.0,0.37120443]
[1762648121903,0.75486758,101840.0,101830.0,0.37120443]
[1762648122106,0.89393202,101840.0,101830.0,0.37120443]
[1762648123707,0.75486758,101840.0,101830.0,0.37120443]
[1762648123908,0.89393202,101840.0,101830.0,0.37120443]
[1762648124900,0.79570062,101840.0,101830.0,0.37120443]
[1762648125907,0.65663618,101840.0,101830.0,0.37120443]
[1762648126396,0.75486758,101840.0,101830.0,0.37120443]
[1762648127810,0.65663618,101840.0,101830.0,0.37120443]
[1762648127998,0.75486758,101840.0,101830.0,0.37120443]
[1762648128306,0.65663618,101840.0,101830.0,0.37120443]
[1762648130706,0.89393202,101840.0,101830.0,0.09323999]
[1762648130909,0.304781,101830.0,101820.0,0.52368702]
[1762648131215,0.5920999,101830.0,101820.0,0.17288701]
[1762648131408,0.5920999,101830.0,101820.0,0.22037701]
[1762648131908,0.4938589,101830.0,101820.0,0.58117701]
[1762648132112,0.4477589,101830.0,101820.0,0.58117701]
[1762648133512,0.4477589,101830.0,101820.0,0.58317701]
[1762648134212,0.5459999,101830.0,101820.0,0.58317701]
[1762648135503,0.14825446,101830.0,101820.0,0.72224145]
[1762648135807,0.14825446,101830.0,101820.0,0.86130589]
[1762648136314,0.14825446,101830.0,101820.0,0.72224145]
[1762648139003,0.24649546,101830.0,101820.0,0.72224145]
[1762648141107,0.5391599,101830.0,101820.0,0.57317702]
[1762648141519,0.5391599,101830.0,101820.0,0.58317701]
[1762648141708,0.32276546,101830.0,101820.0,0.72224145]
[1762648142211,0.14825446,101830.0,101820.0,0.72224145]
[1762648144016,0.24649546,101830.0,101820.0,0.72224145]
[1762648145318,0.24649546,101830.0,101820.0,0.58317701]
[1762648145520,0.24649546,101830.0,101820.0,0.72224145]
[1762648145821,0.40009546,101830.0,101820.0,0.72224145]
[1762648146820,0.22452446,101830.0,101820.0,0.72224145]
[1762648147017,0.14825446,101830.0,101820.0,0.72224145]
[1762648147409,0.24649546,101830.0,101820.0,0.72224145]
[1762648149021,0.32276546,101830.0,101820.0,0.72224145]
[1762648149410,0.14825446,101830.0,101820.0,0.72224145]
[1762648150914,0.14825446,101830.0,101820.0,0.86130589]
[1762648151613,0.24649546,101830.0,101820.0,0.86130589]
[1762648153323,0.14825446,101830.0,101820.0,0.86130589]
[1762648154325,0.24649546,101830.0,101820.0,0.86130589]
[1762648155823,0.14825446,101830.0,101820.0,0.86130589]
[1762648156025,0.09837922,101840.0,101830.0,0.21183]
[1762648156214,0.09837832,101840.0,101830.0,0.71169444]
[1762648156417,0.14687561,101840.0,101830.0,0.95717444]
[1762648156621,0.14687561,101840.0,101830.0,0.71169444]
[1762648156927,0.14687561,101840.0,101830.0,0.95717444]
[1762648157129,0.24510691,101840.0,101830.0,0.71169444]
[1762648157918,0.09837832,101840.0,101830.0,0.95717444]
[1762648159836,0.00014702,101840.0,101830.0,1.10547444]
[1762648161133,0.4379015,101850.0,101840.0,0.21183]
[1762648161322,0.4379015,101850.0,101840.0,0.71169444]
[1762648161532,0.58597541,101850.0,101840.0,0.71169444]
[1762648161725,0.58597541,101850.0,101840.0,0.72169443]
[1762648161926,0.58597541,101850.0,101840.0,1.08249443]
[1762648162335,0.58697541,101850.0,101840.0,1.08249443]
[1762648162636,0.0992217,101850.0,101840.0,1.08249443]
[1762648162826,0.001,101850.0,101840.0,1.08249443]
[1762648163023,0.001,101850.0,101840.0,1.32797443]
[1762648164033,0.0992217,101850.0,101840.0,1.32797443]
[1762648164333,0.0992217,101850.0,101840.0,1.08249443]
[1762648164531,0.001,101850.0,101840.0,1.08249443]
[1762648164736,0.00014702,101860.0,101850.0,0.21183]
[1762648164938,0.00014702,101860.0,101850.0,0.85075888]
[1762648165145,0.09835912,101860.0,101850.0,0.71169444]
[1762648165446,0.00014702,101860.0,101850.0,0.71169444]
[1762648166036,0.00114702,101860.0,101850.0,0.71169444]
[1762648166542,0.00014702,101860.0,101850.0,0.71169444]
[1762648167138,0.00014702,101860.0,101850.0,0.85075888]
[1762648168142,0.00014702,101860.0,101850.0,0.85275888]
[1762648172143,0.5809708,101880.0,101870.0,0.19893999]
[1762648172341,0.5809708,101880.0,101870.0,1.05960443]
[1762648172641,0.72781037,101880.0,101870.0,1.05960443]
[1762648172847,0.38829037,101880.0,101870.0,1.05960443]
[1762648173146,0.24158752,101890.0,101880.0,0.18894]
[1762648173340,0.24158752,101890.0,101880.0,0.68880444]
[1762648173547,0.38858837,101890.0,101880.0,0.54974]
[1762648173733,0.55078281,101890.0,101880.0,0.50543]
[1762648174644,0.55178281,101890.0,101880.0,0.50543]
[1762648174841,0.55178281,101890.0,101880.0,0.54974]
[1762648175038,0.52865281,101890.0,101880.0,0.54974]
[1762648175238,0.52965281,101890.0,101880.0,0.54974]
[1762648177245,0.39058837,101890.0,101880.0,0.54974]
[1762648183642,0.54635123,101890.0,101880.0,0.3608]
[1762648184068,0.2862428,101880.0,101870.0,0.3608]
[1762648184346,0.90598227,101880.0,101870.0,0.3608]
[1762648185547,0.90698227,101880.0,101870.0,0.3608]
[1762648187250,0.90598227,101880.0,101870.0,0.3608]
[1762648187448,0.90998227,101880.0,101870.0,0.43038]
[1762648189850,0.90998227,101880.0,101870.0,0.50071]
[1762648195852,0.90998227,101880.0,101870.0,0.51070999]
[1762648199450,0.90998227,101880.0,101870.0,0.07957999]
[1762648200450,0.90998227,101880.0,101870.0,0.14812999]
[1762648203657,0.90998227,101880.0,101870.0,0.07957999]
[1762648203854,0.90998227,101880.0,101870.0,0.00999999]
[1762648204058,0.90998227,101880.0,101870.0,0.14261999]
[1762648207860,0.86518227,101880.0,101870.0,0.54061999]
[1762648208161,0.86518227,101880.0,101870.0,0.67325285]
[1762648208162,0.73254941,101880.0,101870.0,0.67325285]
[1762648208359,0.63435661,101880.0,101870.0,0.67325285]
[1762648208760,0.49110661,101880.0,101870.0,0.67315285]
[1762648209061,0.15174661,101880.0,101870.0,0.67315285]
[1762648209460,0.14774661,101880.0,101870.0,0.67315285]
[1762648209658,0.14874661,101880.0,101870.0,0.67315285]
[1762648210662,0.24693941,101880.0,101870.0,0.67315285]
[1762648211065,0.14874661,101880.0,101870.0,0.67315285]
[1762648211268,0.24693941,101880.0,101870.0,0.67315285]
[1762648211966,0.14874661,101880.0,101870.0,0.67315285]
[1762648212162,0.14874661,101880.0,101870.0,0.91855285]
[1762648212365,0.04548661,101880.0,101870.0,0.91855285]
[1762648212665,0.14367941,101880.0,101870.0,0.67315285]
[1762648213866,0.04548661,101880.0,101870.0,0.67315285]
[1762648214167,0.14367941,101880.0,101870.0,0.67315285]
[1762648214767,0.14367941,101880.0,101870.0,0.91855285]
[1762648215157,0.14367941,101880.0,101870.0,0.67315285]
[1762648215365,0.14367941,101880.0,101870.0,0.91855285]
[1762648216163,0.14367941,101880.0,101870.0,0.67315285]
[1762648216365,0.14367941,101880.0,101870.0,0.91855285]
[1762648217467,0.14367941,101880.0,101870.0,0.67315285]
[1762648217860,0.14367941,101880.0,101870.0,0.91855285]
[1762648218166,0.14367941,101880.0,101870.0,0.67315285]
[1762648221364,0.14367941,101880.0,101870.0,0.82145285]
[1762648222769,0.14367941,101880.0,101870.0,0.68881999]
[1762648222969,0.14367941,101880.0,101870.0,0.82145285]
[1762648223367,0.21186941,101880.0,101870.0,0.82145285]
[1762648225068,0.11367661,101880.0,101870.0,0.82145285]
[1762648225269,0.21186941,101880.0,101870.0,0.82145285]
[1762648225468,0.21186941,101880.0,101870.0,0.67315285]
[1762648225963,0.04548661,101880.0,101870.0,0.67315285]
[1762648226970,0.04548661,101880.0,101870.0,0.77135525]
[1762648227665,0.04548661,101880.0,101870.0,0.67315285]
[1762648229369,0.04548661,101880.0,101870.0,0.77135515]
[1762648229669,0.09833022,101890.0,101880.0,0.15655]
[1762648229858,0.15563022,101890.0,101880.0,0.64998286]
[1762648231172,0.15763022,101890.0,101880.0,0.64998286]
[1762648232870,0.10033022,101890.0,101880.0,0.64998286]
[1762648233971,0.10032492,101890.0,101880.0,0.89534286]
[1762648234172,0.15318718,101890.0,101880.0,0.89534286]
[1762648234375,0.0981742,101900.0,101890.0,0.13040999]
[1762648234575,0.0981742,101900.0,101890.0,0.62384285]
[1762648234965,0.0981625,101910.0,101900.0,0.02044]
[1762648235273,0.22897106,101920.0,101910.0,0.16644999]
[1762648235467,0.06875416,101920.0,101910.0,0.65988285]
[1762648235775,0.1481632,101920.0,101910.0,0.65988285]
[1762648235966,0.2054632,101920.0,101910.0,0.65988285]
[1762648236166,0.1481632,101920.0,101910.0,0.65988285]
[1762648236969,0.000147,101920.0,101910.0,0.90520285]
[1762648237165,0.000147,101920.0,101910.0,1.00336135]
[1762648237571,0.155436,101940.0,101930.0,0.15084999]
[1762648237870,0.30223563,101940.0,101930.0,1.00508285]
[1762648238070,0.36429563,101940.0,101930.0,1.00508285]
[1762648238776,0.36529563,101940.0,101930.0,1.00508285]
[1762648239477,0.26715963,101940.0,101930.0,1.00508285]
[1762648239672,0.36528923,101940.0,101930.0,1.00508285]
[1762648240165,0.37538656,101940.0,101930.0,1.00508285]
[1762648240362,0.37538656,101940.0,101930.0,1.00491346]
[1762648240980,0.37538656,101940.0,101930.0,1.01116843]